fUSD/lending_fUSD_20240222
["ID","MTS","AMOUNT","RATE_DAILY","PERIOD"]
[314916857,1708637191964,-184.0,0.00039673,120]
[314916858,1708637191989,-776.24756584,0.00039673,120]
[314916859,1708637192014,-773.08462552,0.00039673,120]
[314916860,1708637192039,-17649.38694509,0.00039673,32]
[314916861,1708637192063,-867.983652,0.00039673,120]
[314916862,1708637192089,-2546.45522166,0.00039673,120]
[314916863,1708637192113,-200.0,0.00039673,30]
[314916864,1708637192137,-373.838795,0.00039673,30]
[314916865,1708637192162,-1720.23204,0.00039673,30]
[314916866,1708637192185,-177.315746,0.00039673,30]
[314916867,1708637192208,-166.64109095,0.00039673,30]
[314916868,1708637192234,-998.28025,0.00039673,30]
[314916869,1708637192258,-2065.0,0.00039673,30]
[314916870,1708637192281,-1631.88370098,0.00039673,30]
[314916871,1708637192305,-2065.0,0.00039673,30]
[314916872,1708637199247,7442.6593241,0.0002425,2]
[314916873,1708637209453,-151.0,0.00031375,120]
[314916874,1708637209484,-151.0,0.00032015,30]
[314916875,1708637209709,-600.0,0.00034,35]
[314916876,1708637209734,-38000.0,0.00034,45]
[314916877,1708637209757,-250.0,0.00034,120]
[314916878,1708637209781,-695.854425,0.00034,35]
[314916879,1708637209893,-102009.00283631,0.000349,120]
[314916880,1708637209915,-7323.4206875,0.000349,120]
[314916881,1708637209949,-481.06871168,0.00035,30]
[314916882,1708637209973,-600.0,0.00035,36]
[314916883,1708637210004,-3271.389,0.00035,120]
[314916884,1708637210032,-250.0,0.00035,120]
[314916885,1708637210107,-12651.61160221,0.000355,30]
[314916886,1708637210164,-1134.08773255,0.00036,37]
[314916887,1708637210189,-600.0,0.00036,37]
[314916888,1708637210427,-2116.34460378,0.00036301,30]
[314916889,1708637210450,-161.14,0.00036438,31]
[314916890,1708637210473,-161.14,0.00036438,60]
[314916891,1708637210497,-161.14,0.00036438,89]
[314916892,1708637210522,-352.5860496,0.0003668,30]
[314916893,1708637210546,-273268.15836262,0.000369,30]
[314916894,1708637210571,-600.0,0.00037,38]
[314916895,1708637210597,-151.022219,0.00037198,33]
[314916896,1708637210622,-151.022219,0.00037298,33]
[314916897,1708637210646,-151.022219,0.00037398,33]
[314916898,1708637210668,-4426.0,0.000374,30]
[314916899,1708637210692,-151.022216,0.00037498,33]
[314916900,1708637210716,-151.022219,0.00037598,33]
[314916901,1708637210743,-151.022219,0.00037698,33]
[314916902,1708637210767,-151.022216,0.00037798,33]
[314916903,1708637210792,-151.022219,0.00037898,33]
[314916904,1708637210818,-151.022219,0.00037998,33]
[314916905,1708637210842,-600.0,0.00038,39]
[314916906,1708637210866,-151.022219,0.00038098,34]
[314916907,1708637210891,-151.022219,0.00038198,34]
[314916908,1708637210918,-151.022219,0.00038298,34]
[314916909,1708637210942,-5028.19292858,0.00038356,30]
[314916910,1708637210973,-200000.0,0.00038397,30]
[314916911,1708637210999,-151.022219,0.00038398,34]
[314916912,1708637211213,-151.022215,0.00038498,34]
[314916913,1708637211251,-151.022219,0.00038598,34]
[314916914,1708637211278,-151.022219,0.00038698,34]
[314916915,1708637211326,-151.022215,0.00038798,34]
[314916916,1708637211352,-50000.0,0.00038886,30]
[314916917,1708637211379,-50000.0,0.00038896,30]
[314916918,1708637211410,-151.022219,0.00038898,34]
[314916919,1708637211436,-151.022219,0.00038998,34]
[314916920,1708637211460,-600.0,0.00039,36]
[314916921,1708637211488,-4312.80441642,0.00039,30]
[314916922,1708637211514,-3000.0,0.00039,37]
[314916923,1708637211539,-3000.0,0.0003901,37]
[314916924,1708637211567,-50000.0,0.00039015,30]
[314916925,1708637211592,-50000.0,0.00039015,30]
[314916926,1708637211616,-5348.765415,0.0003902,37]
[314916927,1708637211639,-50000.0,0.00039024,30]
[314916928,1708637211664,-50000.0,0.00039036,30]
[314916929,1708637211688,-25825.87108175,0.00039036,30]
[314916930,1708637217258,7442.6593241,0.0002425,2]
[314916931,1708637225695,-24174.12891825,0.00039036,30]
[314916932,1708637225722,-151.022219,0.00039098,35]
[314916933,1708637225749,-151.022219,0.00039198,35]
[314916934,1708637225774,-151.022219,0.00039298,35]
[314916935,1708637225802,-151.022219,0.00039398,35]
[314916936,1708637225827,-1919.26819788,0.00039452,30]
[314916937,1708637225854,-3717.21804738,0.00039452,30]
[314916938,1708637225880,-5895.15431805,0.00039452,30]
[314916939,1708637225995,-2933.83740529,0.00039452,30]
[314916940,1708637226022,-1866.87664517,0.00039452,30]
[314916941,1708637226048,-151.022215,0.00039498,35]
[314916942,1708637226071,-15616.88606521,0.00039581,120]
[314916943,1708637226095,-15361.44965375,0.00039582,120]
[314916944,1708637226119,-903.3188104,0.00039583,120]
[314916945,1708637226143,-15361.44965375,0.00039584,120]
[314916946,1708637226166,-574.796037,0.00039585,120]
[314916947,1708637226190,-1544.73635423,0.00039594,120]
[314916948,1708637226213,-1544.73635423,0.00039596,120]
[314916949,1708637226237,-574.796037,0.00039598,120]
[314916950,1708637226262,-151.022219,0.00039598,35]
[314916951,1708637226290,-160.47002346,0.00039599,120]
[314916952,1708637226314,-15616.88606521,0.00039602,120]
[314916953,1708637226336,-574.796037,0.00039606,120]
[314916954,1708637226359,-160.47002346,0.00039613,120]
[314916955,1708637226383,-903.3188104,0.00039616,120]
[314916956,1708637226411,-189414.13559951,0.0003962,120]
[314916957,1708637226435,-903.3188104,0.00039624,120]
[314916958,1708637226462,-903.3188104,0.00039628,120]
[314916959,1708637226487,-15616.88606521,0.0003963,120]
[314916960,1708637226510,-15616.88606521,0.00039636,120]
[314916961,1708637226534,-1544.73635423,0.00039637,120]
[314916962,1708637226557,-189414.13559951,0.00039644,120]
[314916963,1708637226582,-189414.13559951,0.00039647,120]
[314916964,1708637226604,-15361.44965375,0.00039662,120]
[314916965,1708637226634,-15361.44965375,0.00039675,120]
[314916966,1708637226656,-1544.73635423,0.00039675,120]
[314916967,1708637226678,-160.47002346,0.00039679,120]
[314916968,1708637226701,-574.796037,0.00039684,120]
[314916969,1708637226723,-189414.13559951,0.00039693,120]
[314916970,1708637226745,-160.47002346,0.00039696,120]
[314916971,1708637226769,-151.022219,0.00039698,35]
[314916972,1708637226792,-3302.54697572,0.00039785,30]
[314916973,1708637226816,-151.022219,0.00039798,35]
[314916974,1708637226840,-151.022219,0.00039898,35]
[314916975,1708637226864,-58000.0,0.000399,60]
[314916976,1708637226888,-4009.59794083,0.00039997,30]
[314916977,1708637226912,-151.022219,0.00039998,35]
[314916978,1708637226939,-956.03715815,0.0004,60]
[314916979,1708637226962,-694.42776846,0.0004,30]
[314916980,1708637226986,-600.0,0.0004,41]
[314916981,1708637227009,-280238.21100328,0.0004,30]
[314916982,1708637227031,-500.0,0.0004,120]
[314916983,1708637227055,-500.0,0.0004,120]
[314916984,1708637227078,-200.72944543,0.0004,120]
[314916985,1708637227103,-526.31663965,0.0004,30]
[314916986,1708637227126,-410.72262989,0.0004,30]
[314916987,1708637227150,-500.57359999,0.0004,120]
[314916988,1708637227174,-592.62750189,0.0004,120]
[314916989,1708637227197,-720.49939843,0.0004,120]
[314916990,1708637227221,-830.0,0.0004,30]
[314916991,1708637227245,-6148.95664177,0.0004,120]
[314916992,1708637227268,-27640.24367248,0.0004,30]
[314916993,1708637227291,-2465.0,0.0004,30]
[314916994,1708637227314,-2000.0,0.0004,30]
[314916995,1708637227336,-3000.0,0.0004,30]
[314916996,1708637227365,-30211.13191478,0.0004,30]
[314916997,1708637227392,-28090.25625714,0.0004,30]
[314916998,1708637227417,-28620.31974742,0.0004,30]
[314916999,1708637227441,-23635.79299681,0.0004,30]
[314917000,1708637227465,-73125.16411495,0.0004,30]
[314917001,1708637227490,-100847.38519428,0.0004,30]
[314917002,1708637227514,-80614.70133408,0.0004,30]
[314917003,1708637227537,-30782.86703926,0.0004,30]
[314917004,1708637227560,-122954.89774579,0.0004,30]
[314917005,1708637227584,-61097.78111459,0.0004,30]
[314917006,1708637227607,-89733.03220251,0.0004,30]
[314917007,1708637227631,-1208.0,0.00040065,30]
[314917008,1708637227656,-151.022219,0.00040098,39]
[314917009,1708637227680,-151.022219,0.00040198,39]
[314917010,1708637227705,-151.022219,0.00040298,39]
[314917011,1708637227731,-151.022219,0.00040398,39]
[314917012,1708637227757,-151.022215,0.00040498,34]
[314917013,1708637227782,-151.022219,0.00040598,35]
[314917014,1708637227805,-166.64109095,0.00040671,30]
[314917015,1708637227829,-151.022219,0.00040698,39]
[314917016,1708637227854,-151.022219,0.00040798,39]
[314917017,1708637227876,-14540.6579543,0.000409,30]
[314917018,1708637227898,-16000.0,0.00040921,30]
[314917019,1708637227920,-200.0,0.00040987,31]
[314917020,1708637227943,-300.0,0.00041,42]
[314917021,1708637227965,-245.0,0.00041,30]
[314917022,1708637227989,-1000.0,0.00041095,30]
[314917023,1708637228013,-500.0,0.00041095,30]
[314917024,1708637228034,-500.0,0.00041095,30]
[314917025,1708637228055,-500.0,0.00041095,30]
[314917026,1708637228078,-500.0,0.00041095,30]
[314917027,1708637228100,-500.0,0.00041095,30]
[314917028,1708637228122,-500.0,0.00041095,30]
[314917029,1708637228144,-500.0,0.00041095,30]
[314917030,1708637228167,-500.0,0.00041095,30]
[314917031,1708637228189,-500.0,0.00041095,30]
[314917032,1708637228211,-500.0,0.00041095,30]
[314917033,1708637228233,-500.0,0.00041095,30]
[314917034,1708637228258,-500.0,0.00041095,30]
[314917035,1708637228283,-500.0,0.00041095,30]
[314917036,1708637228305,-513.60972877,0.00041095,30]
[314917037,1708637235260,7442.6593241,0.0002425,2]
[314917038,1708637255262,7442.6593241,0.0002425,2]
[314917039,1708637258612,-800.0,0.00027,3]
[314917040,1708637275387,7442.6593241,0.0002425,2]
[314917041,1708637295256,7442.6593241,0.0002425,2]
[314917042,1708637311256,7442.6593241,0.0002425,2]
[314917043,1708637329265,7442.6593241,0.0002425,2]
[314917044,1708637347269,7442.6593241,0.0002425,2]
[314917045,1708637367278,7442.6593241,0.0002425,2]
[314917046,1708637368632,-151.0,0.00031341,120]
[314917047,1708637369038,-211.9532391,0.00039593,120]
[314917048,1708637369062,-211.9532391,0.00039609,120]
[314917049,1708637369085,-211.9532391,0.00039618,120]
[314917050,1708637369108,-212.75776674,0.0003963,120]
[314917051,1708637369130,-212.75776674,0.00039638,120]
[314917052,1708637369155,-211.9532391,0.00039643,120]
[314917053,1708637369181,-211.9532391,0.00039645,120]
[314917054,1708637369204,-211.9532391,0.00039657,120]
[314917055,1708637369235,-211.9532391,0.00039673,120]
[314917056,1708637369259,-211.9532391,0.00039679,120]
[314917057,1708637369287,-212.75776674,0.00039682,120]
[314917058,1708637369310,-212.75776674,0.00039699,120]
[314917059,1708637369337,-1245.51460577,0.0004,60]
[314917060,1708637369373,-340.0,0.00041425,90]
[314917061,1708637369399,-151.022215,0.00041498,35]
[314917062,1708637369422,-163.0,0.0004197,120]
[314917063,1708637369447,-163.0,0.0004197,120]
[314917064,1708637369476,-163.0,0.0004198,120]
[314917065,1708637369500,-163.0,0.0004198,120]
[314917066,1708637369525,-163.0,0.0004198,120]
[314917067,1708637369551,-163.0,0.0004198,120]
[314917068,1708637369575,-252.02,0.0004198,120]
[314917069,1708637369605,-163.0,0.0004199,120]
[314917070,1708637369628,-163.0,0.0004199,120]
[314917071,1708637369653,-163.0,0.0004199,120]
[314917072,1708637369677,-163.0,0.0004199,120]
[314917073,1708637369701,-150.5,0.0004199,120]
[314917074,1708637369724,-314.2624491,0.00042,120]
[314917075,1708637369749,-504.8999,0.00042,59]
[314917076,1708637369772,-336.1224,0.00042,59]
[314917077,1708637369794,-250.0,0.00042,42]
[314917078,1708637369816,-160.0,0.00042,77]
[314917079,1708637369840,-1000.0,0.00042465,40]
[314917080,1708637369865,-151.022215,0.00042498,39]
[314917081,1708637369887,-5163.0968045,0.000425,120]
[314917082,1708637369914,-200.0,0.00042987,35]
[314917083,1708637369937,-30117.30912615,0.00043,100]
[314917084,1708637369961,-839.03679,0.00043,44]
[314917085,1708637369986,-184.52,0.00043112,120]
[314917086,1708637370010,-340.0,0.00043496,90]
[314917087,1708637370035,-151.022215,0.00043498,40]
[314917088,1708637370064,-547.19456258,0.0004376,60]
[314917089,1708637370088,-3472.11164253,0.000438,120]
[314917090,1708637370111,-328.27983415,0.00043809,120]
[314917091,1708637370135,-1000.0,0.00043835,50]
[314917092,1708637370233,1159.71,0.00043,35]
[314917093,1708637377428,5816.0,0.00043,60]
[314917094,1708637383286,3842.75500608,0.0002425,2]
[314917106,1708637431914,-466.9179,0.00026261,2]
[314917107,1708637431924,-185.23844336,0.00026707,2]
[314917108,1708637431932,-206.0,0.00026807,2]
[314917109,1708637431941,-1831.1069,0.00028294,2]
[314917110,1708637431951,-786.01,0.00028394,2]
[314917111,1708637431960,-181.45574884,0.00028659,2]
[314917112,1708637431969,-206.0,0.00028759,5]
[314917113,1708637431978,-850.0,0.00029,3]
[314917114,1708637431987,-150.0,0.00029446,2]
[314917115,1708637431996,-184.52,0.00029464,120]
[314917116,1708637432005,-170.3,0.00029478,2]
[314917117,1708637432015,-88.67958897,0.0002948,2]
[314917118,1708637432026,-878.99041103,0.0002948,2]
[314917119,1708637432035,-1852.42,0.0002952,2]
[314917120,1708637432045,-150.0,0.00029528,2]
[314917121,1708637432054,-405.9,0.00029532,2]
[314917122,1708637432063,-243.93375692,0.00029532,2]
[314917123,1708637432098,-256.06624308,0.00029532,2]
[314917124,1708637432107,-150.0,0.00029534,2]
[314917125,1708637432116,-1835.91,0.00029535,2]
[314917126,1708637432125,-169.61,0.0002957,2]
[314917127,1708637432135,-230.65,0.00029571,2]
[314917128,1708637432144,-2705.0,0.00029593,2]
[314917129,1708637432154,-228.95,0.00029596,2]
[314917130,1708637432163,-499.99,0.00029701,2]
[314917131,1708637432173,-212.18,0.00029822,2]
[314917132,1708637432182,-155.0,0.00029877,2]
[314917133,1708637432191,-169.61,0.00029954,2]
[314917134,1708637432204,-500.0,0.00030065,2]
[314917135,1708637432213,-23900.0,0.00030152,2]
[314917136,1708637432222,-811.5,0.00030168,2]
[314917137,1708637432232,-196.64,0.00030186,2]
[314917138,1708637432241,-196.64,0.00030268,2]
[314917139,1708637432250,-2000.0,0.00030327,2]
[314917140,1708637432259,-169.61,0.00030338,2]
[314917141,1708637432269,-196.64,0.00030351,2]
[314917142,1708637432278,-250.0,0.00030352,2]
[314917143,1708637432288,-200.0,0.00030353,2]
[314917144,1708637432297,-500.0,0.00030402,2]
[314917145,1708637432305,-250.0,0.00030402,2]
[314917146,1708637432315,-200.0,0.00030402,2]
[314917147,1708637432324,-1924.84,0.00030402,2]
[314917149,1708637432333,-1000.0,0.00030402,2]
[314917150,1708637432342,-8703.01413599,0.00030417,2]
[314917152,1708637432354,-4293.71305142,0.00030417,2]
[314917153,1708637432365,-556.58,0.00030417,2]
[314917154,1708637432393,-1248.31282495,0.00030417,2]
[314917155,1708637432404,-4275.13998764,0.00030417,2]
[314917156,1708637432413,-196.64,0.00030434,2]
[314917157,1708637432422,-196.64,0.00030517,2]
[314917158,1708637432431,-196.64,0.000306,2]
[314917159,1708637432440,-320.81,0.00030608,2]
[314917160,1708637432454,-150.99,0.00030642,2]
[314917161,1708637432465,-621.64001236,0.00030658,2]
[314917162,1708637432485,-164.36998764,0.00030658,2]
[314917163,1708637432495,-196.64,0.00030682,2]
[314917164,1708637432504,-206.0,0.00030712,8]
[314917165,1708637432513,-169.61,0.00030723,2]
[314917166,1708637432522,-196.64,0.00030765,2]
[314917167,1708637432532,-2393.44,0.00030821,2]
[314917168,1708637432541,-196.64,0.00030848,2]
[314917169,1708637432550,-3637.89235709,0.00030925,4]
[314917170,1708637432560,-1774.28434801,0.00030926,2]
[314917171,1708637432572,-1008.11171313,0.00030926,2]
[314917172,1708637432587,-462.71797257,0.00030926,2]
[314917173,1708637432599,-668.63096404,0.00030926,2]
[314917174,1708637432742,-45585.25500225,0.00030926,2]
[314917175,1708637432766,-196.64,0.00030931,2]
[314917176,1708637432776,-153.64,0.00030993,2]
[314917177,1708637432785,-900.0,0.00031,3]
[314917178,1708637432794,-196.64,0.00031014,2]
[314917179,1708637432803,-228.95,0.00031076,2]
[314917180,1708637432812,-196.64,0.00031096,2]
[314917181,1708637432821,-169.61,0.00031107,2]
[314917182,1708637432830,-200.0,0.00031149,2]
[314917183,1708637432839,-196.64,0.00031179,2]
[314917184,1708637432848,-1000.0,0.000312,2]
[314917185,1708637432857,-1906.89312668,0.000312,5]
[314917186,1708637432867,-155.0,0.00031247,2]
[314917187,1708637432876,-196.64,0.00031262,2]
[314917188,1708637432885,-151.022306,0.00031298,2]
[314917189,1708637432894,-151.022306,0.00031298,2]
[314917190,1708637432903,-151.022306,0.00031298,2]
[314917191,1708637432912,-151.022306,0.00031298,2]
[314917192,1708637432921,-151.022306,0.00031298,2]
[314917193,1708637432930,-151.022306,0.00031298,2]
[314917194,1708637432939,-151.022306,0.00031298,2]
[314917195,1708637432949,-151.022306,0.00031298,2]
[314917196,1708637432958,-151.022306,0.00031298,2]
[314917197,1708637432967,-151.022306,0.00031298,2]
[314917198,1708637432976,-151.022306,0.00031298,2]
[314917199,1708637432985,-151.022306,0.00031298,2]
[314917200,1708637432994,-171.0,0.000313,2]
[314917201,1708637433003,-207.5361,0.000313,2]
[314917202,1708637433012,-878.5219,0.000313,2]
[314917203,1708637433022,-309849.7388,0.000313,2]
[314917204,1708637433031,-253.1296,0.000313,2]
[314917205,1708637433040,-3683.1088,0.000313,2]
[314917206,1708637433049,-196.64,0.00031345,2]
[314917207,1708637433058,-14456.0,0.000314,3]
[314917208,1708637433068,-196.64,0.00031427,2]
[314917209,1708637433077,-153.64,0.00031436,2]
[314917210,1708637433086,-196.64,0.0003151,2]
[314917211,1708637433095,-196.64,0.00031593,2]
[314917212,1708637433105,-187.78,0.00031644,2]
[314917213,1708637433118,-196.64,0.00031676,2]
[314917214,1708637433128,-1906.89312668,0.00031676,5]
[314917215,1708637433137,-196.64,0.00031759,2]
[314917216,1708637433147,-151.26368543,0.00031778,2]
[314917217,1708637433157,-354.86,0.0003178,2]
[314917218,1708637433166,-944.06075206,0.000318,2]
[314917219,1708637433176,-944.06075206,0.000318,2]
[314917220,1708637433186,-44010.3587,0.000318,2]
[314917221,1708637433196,-1981.6063,0.000318,2]
[314917222,1708637433206,-7161.3172,0.000318,2]
[314917223,1708637433215,-87697.7650261,0.000318,2]
[314917224,1708637433225,-153.64,0.00031878,2]
[314917225,1708637433235,-1000.0,0.00031899,2]
[314917226,1708637433244,-151.0,0.0003198,30]
[314917227,1708637433253,-2500.0,0.00032,2]
[314917228,1708637433263,-270.17004359,0.00032,2]
[314917229,1708637433272,-270.17004359,0.00032,2]
[314917230,1708637433281,-270.17004359,0.00032,2]
[314917231,1708637433291,-270.17004359,0.00032,2]
[314917232,1708637433301,-270.17004359,0.00032,2]
[314917233,1708637433310,-270.17004359,0.00032,2]
[314917234,1708637433319,-270.17004359,0.00032,2]
[314917235,1708637433328,-270.17004359,0.00032,2]
[314917236,1708637433338,-270.17004359,0.00032,2]
[314917237,1708637433347,-270.17004359,0.00032,2]
[314917238,1708637433356,-270.17004359,0.00032,2]
[314917239,1708637433365,-270.17004359,0.00032,2]
[314917240,1708637433374,-270.17004359,0.00032,2]
[314917241,1708637433384,-270.17004359,0.00032,2]
[314917242,1708637433394,-270.17004359,0.00032,2]
[314917243,1708637433403,-270.17004359,0.00032,2]
[314917244,1708637433412,-270.17004359,0.00032,2]
[314917245,1708637433422,-270.17004359,0.00032,2]
[314917246,1708637433431,-270.17004359,0.00032,2]
[314917247,1708637433440,-270.17004359,0.00032,2]
[314917248,1708637433453,-270.17004359,0.00032,2]
[314917249,1708637433465,-270.17004359,0.00032,2]
[314917250,1708637433475,-270.17004359,0.00032,2]
[314917251,1708637433484,-270.17004359,0.00032,2]
[314917252,1708637433495,-270.17004359,0.00032,2]
[314917253,1708637433504,-270.17004359,0.00032,2]
[314917254,1708637433514,-270.17004359,0.00032,2]
[314917255,1708637433525,-270.17004359,0.00032,2]
[314917256,1708637433537,-270.17004359,0.00032,2]
[314917257,1708637433546,-270.17004359,0.00032,2]
[314917258,1708637433556,-270.17004359,0.00032,2]
[314917259,1708637433569,-270.17004359,0.00032,2]
[314917260,1708637433579,-270.17004359,0.00032,2]
[314917261,1708637433588,-270.17004359,0.00032,2]
[314917262,1708637433598,-270.17004359,0.00032,2]
[314917263,1708637433608,-270.17004359,0.00032,2]
[314917264,1708637433617,-270.17004359,0.00032,2]
[314917265,1708637433627,-270.17004359,0.00032,2]
[314917266,1708637433636,-270.17004359,0.00032,2]
[314917267,1708637433646,-270.17004359,0.00032,2]
[314917268,1708637433655,-270.17004359,0.00032,2]
[314917269,1708637433665,-270.17004359,0.00032,2]
[314917270,1708637433674,-270.17004359,0.00032,2]
[314917271,1708637433684,-270.17004359,0.00032,2]
[314917272,1708637433694,-270.17004359,0.00032,2]
[314917273,1708637433704,-270.17004359,0.00032,2]
[314917274,1708637433713,-270.17004359,0.00032,2]
[314917275,1708637433723,-270.17004359,0.00032,2]
[314917276,1708637433733,-270.17004359,0.00032,2]
[314917277,1708637433743,-270.17004359,0.00032,2]
[314917278,1708637433752,-270.17004359,0.00032,2]
[314917279,1708637433761,-270.17004359,0.00032,2]
[314917280,1708637433771,-270.17004359,0.00032,2]
[314917281,1708637433781,-270.17004359,0.00032,2]
[314917282,1708637433790,-270.17004359,0.00032,2]
[314917283,1708637433800,-1924.84,0.00032046,2]
[314917284,1708637433809,-632.56,0.000321,2]
[314917285,1708637433819,-320.81,0.00032138,2]
[314917286,1708637433829,-1906.89312668,0.00032152,5]
[314917287,1708637433841,-151.26368539,0.00032165,2]
[314917288,1708637433851,-166.11076205,0.00032194,7]
[314917289,1708637433861,-510.894,0.00032195,2]
[314917290,1708637433871,-5675.44743862,0.00032195,2]
[314917291,1708637433885,-1502.28437207,0.00032195,2]
[314917292,1708637433913,-737.64158867,0.00032195,2]
[314917293,1708637433933,-270.17004359,0.00032,2]
[314917294,1708637433944,-1605.77082872,0.00032195,2]
[314917295,1708637433956,-3494.22765723,0.00032195,2]
[314917304,1708637438183,-155.1595809,0.0003179,2]
[314917305,1708637438193,-270.17004359,0.00032,2]
[314917306,1708637438202,-270.17004359,0.00032,2]
[314917307,1708637438211,-270.17004359,0.00032,2]
[314917308,1708637438221,-45.13028833,0.00032,2]
[314917309,1708637438234,-225.03975526,0.00032,2]
[314917310,1708637438244,-270.17004359,0.00032,2]
[314917311,1708637438254,-270.17004359,0.00032,2]
[314917312,1708637438263,-270.17004359,0.00032,2]
[314917314,1708637438273,-270.17004359,0.00032,2]
[314917315,1708637438282,-270.17004359,0.00032,2]
[314917316,1708637438292,-270.17004359,0.00032,2]
[314917317,1708637438301,-270.17004359,0.00032,2]
[314917318,1708637438311,-270.17004359,0.00032,2]
[314917319,1708637438320,-270.17004359,0.00032,2]
[314917320,1708637438329,-270.17004359,0.00032,2]
[314917321,1708637438338,-270.17004359,0.00032,2]
[314917322,1708637438348,-270.17004359,0.00032,2]
[314917323,1708637438357,-270.17004359,0.00032,2]
[314917324,1708637438368,-270.17004359,0.00032,2]
[314917325,1708637438377,-270.17004359,0.00032,2]
[314917326,1708637438387,-270.17004359,0.00032,2]
[314917327,1708637438397,-270.17004359,0.00032,2]
[314917328,1708637438406,-270.17004359,0.00032,2]
[314917329,1708637438416,-270.17004359,0.00032,2]
[314917330,1708637438426,-270.17004359,0.00032,2]
[314917331,1708637438436,-270.17004359,0.00032,2]
[314917332,1708637438446,-270.17004359,0.00032,2]
[314917333,1708637438460,-270.17004359,0.00032,2]
[314917334,1708637438470,-270.17004359,0.00032,2]
[314917335,1708637438479,-537.68,0.000321,2]
[314917336,1708637438488,-31272.46513034,0.00032195,2]
[314917337,1708637438514,-925.30673529,0.00032195,2]
[314917338,1708637438526,-2133.02229366,0.00032195,2]
[314917339,1708637438552,-270.17004359,0.00032,2]
[314917340,1708637438562,-5516.11099706,0.00032195,2]
[314917341,1708637438575,-3570.60000001,0.00032195,2]
[314917342,1708637438619,-270.17004359,0.00032,2]
[314917343,1708637438628,-184.50911129,0.00032195,2]
[314917344,1708637438639,-977.01826793,0.00032195,2]
[314917345,1708637438650,-703.06376497,0.00032195,2]
[314917346,1708637438670,-8969.08620021,0.00032195,2]
[314917347,1708637438690,-1195.43925594,0.00032195,2]
[314917348,1708637438707,-253.57669269,0.00032195,2]
[314917356,1708637440538,-270.17004359,0.00032,2]
[314917357,1708637440547,-270.17004359,0.00032,2]
[314917358,1708637440557,-270.17004359,0.00032,2]
[314917359,1708637440568,-270.17004359,0.00032,2]
[314917360,1708637440577,-270.17004359,0.00032,2]
[314917361,1708637440587,-270.17004359,0.00032,2]
[314917362,1708637440596,-270.17004359,0.00032,2]
[314917363,1708637440605,-270.17004359,0.00032,2]
[314917364,1708637440614,-270.17004359,0.00032,2]
[314917365,1708637440624,-270.17004359,0.00032,2]
[314917366,1708637440633,-270.17004359,0.00032,2]
[314917367,1708637440642,-270.17004359,0.00032,2]
[314917368,1708637440651,-270.17004359,0.00032,2]
[314917369,1708637440661,-270.17004359,0.00032,2]
[314917370,1708637440670,-1331.7194862,0.00032195,2]
[314917371,1708637440682,-270.9234445,0.00032195,2]
[314917372,1708637440693,-421.57,0.00032195,2]
[314917373,1708637440714,-2619.62879999,0.00032195,2]
[314917374,1708637440725,-6753.63663461,0.00032195,2]
[314917375,1708637440735,-1953.0,0.00032295,2]
[314917376,1708637440744,-1231.0,0.00032295,2]
[314917377,1708637440754,-1257.0,0.00032295,2]
[314917378,1708637440764,-600.0,0.00032295,2]
[314917379,1708637440773,-216.0,0.00032295,2]
[314917380,1708637440782,-859.0,0.00032295,2]
[314917381,1708637440791,-430.0,0.00032295,2]
[314917382,1708637440800,-1007.0,0.00032295,2]
[314917383,1708637440809,-276.0,0.00032295,2]
[314917384,1708637440819,-322.0,0.00032295,2]
[314917385,1708637440828,-2890.0,0.00032295,2]